fUST/lending_fUST_20241204
["ID","MTS","AMOUNT","RATE_DAILY","PERIOD"]
[344058333,1733256647301,-500.0,0.00031003,7]
[344058334,1733256647311,-500.0,0.00031003,7]
[344058335,1733256647321,-500.0,0.00031003,7]
[344058336,1733256647330,-500.0,0.00031003,7]
[344058337,1733256647340,-500.0,0.00031003,7]
[344058338,1733256647349,-90.48062414,0.00031003,7]
[344058340,1733256897849,444.154357,0.000298,120]
[344058341,1733256897875,461.95,0.000298,120]
[344058342,1733256897899,201.607095,0.000298,120]
[344058343,1733256897920,1000.0,0.000298,120]
[344058365,1733257642121,-1054.6644267,0.00028813,2]
[344058366,1733257642145,-29533.7029526,0.000299,120]
[344058367,1733257642179,-300.0,0.00029989,2]
[344058368,1733257642203,-544.13,0.0002999,10]
[344058369,1733257642226,-447.68378507,0.00029999,2]
[344058370,1733257642250,-500.0,0.00029999,2]
[344058371,1733257642274,-500.0,0.00029999,2]
[344058372,1733257642296,-500.0,0.00029999,2]
[344058373,1733257642318,-439.45704233,0.00029999,2]
[344058374,1733257642340,-500.0,0.00029999,2]
[344058375,1733257642363,-207.68598922,0.00029999,2]
[344058376,1733257642385,-3700.90655605,0.0003,2]
[344058377,1733257649175,-327.1069306,0.0003,2]
[344058401,1733257747301,-300.0,0.00019989,2]
[344058402,1733257747321,-131415.9657758,0.0001999,2]
[344058403,1733257748166,-7102.25314809,0.0001999,2]
[344058405,1733257752139,-56525.17154102,0.0001999,2]
[344058407,1733257753197,-12411.19341076,0.0001999,2]
[344058408,1733257753221,-3314.15458063,0.0002,2]
[344058409,1733257753247,-52827.66335891,0.00020377,2]
[344058410,1733257753269,-420.0,0.00021766,2]
[344058411,1733257753289,-913.0962862,0.00021859,2]
[344058412,1733257753311,-587.0,0.00023701,2]
[344058413,1733257753336,-156.99076886,0.000249,2]
[344058414,1733257753356,-156166.60128058,0.00025,2]
[344058415,1733257753375,-57131.13276582,0.00025,2]
[344058416,1733257753395,-204.07410574,0.00025,2]
[344058417,1733257753416,-250.35760467,0.00025808,2]
[344058418,1733257754137,-572.64239533,0.00025808,2]
[344058419,1733257754159,-1921.80540921,0.00026,30]
[344058420,1733257754182,-156.99076886,0.000274,2]
[344058427,1733257772134,-1152.0,0.00028102,2]
[344058437,1733257833626,-300.0,0.00028399,2]
[344058438,1733257833636,-4871.67498475,0.000284,2]
[344058439,1733257833686,-6503.71997,0.000284,2]
[344058503,1733257837862,-425.03840752,0.000284,2]
[344058510,1733257837921,-2857.59034575,0.000284,2]
[344058512,1733257837933,-1550.7470573,0.000284,2]
[344058633,1733257845866,-2005.70100425,0.000284,2]
[344058640,1733257931464,2390.39079722,0.00024953,2]
[344058641,1733257939357,709.93531017,0.00024953,2]
[344058650,1733258732118,-863.40197084,0.0002,2]
[344058651,1733258828105,-305.86886249,0.0002,2]
[344058652,1733258828127,-1169.27083333,0.0002,2]
[344058653,1733258828148,-822.7425533,0.00025335,2]
[344058654,1733258828170,-971.0073661,0.00025354,2]
[344058655,1733258828190,-1192.3198139,0.00025456,2]
[344058656,1733258828213,-45.00092857,0.00025613,2]
[344058659,1733258832094,-142.39719343,0.00025613,2]
[344058660,1733258832126,-198.6594632,0.0002567,2]
[344058661,1733258832147,-660.0,0.00026384,2]
[344058662,1733258832170,-167.73225488,0.00026636,2]
[344058663,1733258832191,-300.0,0.00026732,2]
[344058664,1733258832213,-300.0,0.00026732,2]
[344058665,1733258832236,-3487.26949065,0.00026732,2]
[344058666,1733258834301,-1547.0410352,0.00026732,2]
[344058667,1733258839104,-1038.21743647,0.00026469,2]
[344058669,1733258945134,-1169.27083333,0.0002,2]
[344058670,1733258945155,-300.0,0.00026467,2]
[344058671,1733258945177,-300.0,0.00026467,2]
[344058672,1733258945201,-26778.0,0.00026467,2]
[344058673,1733258945223,-21219.65086744,0.00026469,2]
[344058674,1733258953126,-2642.13169609,0.00026469,2]
[344058675,1733258953146,-528.38848446,0.00026736,2]
[344058676,1733258953166,-170.675925,0.00027475,2]
[344058677,1733258961008,1169.27083333,0.0002,2]
[344058730,1733259032162,-300.0,0.00028399,2]
[344058732,1733259032172,-352.25898964,0.000284,2]
[344058734,1733259032181,-23308.58029645,0.000284,2]
[344058739,1733259032219,-473.111996,0.000284,2]
[344058741,1733259032231,-470.53872486,0.000284,2]
[344058744,1733259032242,-1032.4762356,0.000284,2]
[344058748,1733259032279,-9712.04490014,0.000284,2]
[344058750,1733259032290,-1423.31819039,0.000284,2]
[344058784,1733259036603,1169.27083333,0.0002,2]
[344058822,1733259038033,-3395.27158069,0.000284,2]
[344058824,1733259038043,-167.73225487,0.00028529,2]
[344058826,1733259038053,-10222.36377085,0.00028795,2]
[344058827,1733259038062,-333.488,0.00029,120]
[344058828,1733259038071,-10222.36377085,0.00029076,2]
[344058829,1733259038081,-167.73225487,0.00029316,2]
[344058830,1733259038091,-10222.36377085,0.00029347,2]
[344058831,1733259038101,-187.398122,0.00029403,2]
[344058832,1733259038110,-10222.36377087,0.00029796,2]
[344058833,1733259038119,-396.71061121,0.00029799,2]
[344058834,1733259038127,-5828.4390604,0.000298,7]
[344058835,1733259038136,-190.47,0.0002989,3]
[344058836,1733259038145,-571.41,0.0002989,3]
[344058837,1733259038154,-935.41,0.0002989,10]
[344058838,1733259038163,-6666.0,0.000299,2]
[344058839,1733259038173,-1993.78276439,0.000299,2]
[344058840,1733259038182,-500.0,0.00029973,5]
[344058841,1733259038192,-500.0,0.00029973,5]
[344058842,1733259038201,-779.5,0.0002999,10]
[344058843,1733259038210,-500.0,0.00029999,2]
[344058844,1733259038220,-500.0,0.00029999,2]
[344058845,1733259038229,-476.32346829,0.00029999,2]
[344058846,1733259038238,-500.0,0.00029999,2]
[344058847,1733259038247,-530.2637254,0.00029999,2]
[344058848,1733259038257,-500.0,0.00029999,2]
[344058849,1733259038266,-274.1233187,0.00029999,2]
[344058850,1733259038276,-230.91783375,0.00029999,2]
[344058851,1733259038285,-500.0,0.00029999,2]
[344058852,1733259038294,-28974.75537041,0.0003,2]
[344058853,1733259038758,-584.00648913,0.0003,2]
[344058854,1733259038770,-34435.54941628,0.0003,2]
[344058917,1733259043108,-889.26756715,0.0003,2]
[344058931,1733259046013,-171.89344835,0.0002999,10]
[344058932,1733259046045,-477.69655165,0.0002999,10]
[344058933,1733259046054,-17845.1617631,0.0003,2]
[344058934,1733259112701,1169.27083333,0.0002,2]
[344058935,1733259143846,500.0,0.00027397,2]
[344058949,1733259941164,-291.87705263,0.00024999,2]
[344058950,1733259954084,-877.3937807,0.00024999,2]
[344058951,1733259954110,-500.0,0.00027397,2]
[344058952,1733259954135,-468.61915533,0.00027492,2]
[344058954,1733260025130,-1169.27083333,0.00026666,2]
[344058955,1733260025152,-417.68438457,0.00027492,2]
[344058956,1733260025182,-250.0,0.00027666,2]
[344058957,1733260025210,-170.8480706,0.00027803,2]
[344058958,1733260025233,-300.0,0.00028508,2]
[344058959,1733260025257,-300.0,0.00028508,2]
[344058960,1733260025281,-23998.82677845,0.00028508,2]
[344058961,1733260039103,-2779.17322155,0.00028508,2]
[344058962,1733260039126,-109.70271907,0.00028509,2]
[344058963,1733260042097,-401.47799365,0.00028509,2]
[344058966,1733260156192,-1169.27083333,0.00028083,2]
[344059014,1733260232481,-1169.27083333,0.00028508,2]
[344059015,1733260232492,-178.0,0.00028517,2]
[344059016,1733260232501,-300.0,0.00028517,2]
[344059017,1733260232511,-685.5960481,0.00028518,2]
[344059128,1733260234053,-10078.60838331,0.00028518,2]
[344059132,1733260234114,-14135.79556859,0.00028518,2]
[344059134,1733260234124,-500.0,0.00028767,4]
[344059135,1733260234133,-596.00738416,0.00029899,2]
[344059136,1733260234144,-666.0,0.000299,2]
[344059137,1733260234153,-612.2639985,0.000299,2]
[344059138,1733260234162,-380.94,0.0002999,3]
[344059139,1733260234172,-674.01,0.0002999,10]
[344059141,1733260234181,-633.62,0.0002999,10]
[344059142,1733260234190,-161.2452951,0.00029999,2]
[344059143,1733260234200,-163.48180846,0.00029999,10]
[344059144,1733260234209,-367.06545303,0.00029999,2]
[344059145,1733260234219,-237.05054138,0.0003,2]
[344059146,1733260234228,-55015.93983552,0.0003,2]
[344059148,1733260234239,-279620.02861508,0.0003,5]
[344059161,1733260238425,-528.02,0.0002999,10]
[344059162,1733260238435,-2428.27222966,0.0003,5]
[344059179,1733260243425,-14029.94537251,0.0003,5]
[344059203,1733260246243,-274.1233187,0.00029999,2]
[344059204,1733260246252,-3170.69518644,0.0003,5]
[344059205,1733260246264,-769.57038075,0.0003,5]
[344059206,1733260246276,-2757.8091937,0.0003,5]
[344059207,1733260246287,-1735.0,0.0003,5]
[344059208,1733260246303,-297.98055278,0.0003,5]
[344059212,1733260261917,500.0,0.00030005,120]
[344059213,1733260262651,527.2,0.00030005,120]
[344059214,1733260334800,151.0,0.0003,120]
[344059215,1733260359172,151.0,0.0003,120]
[344059293,1733260731460,500.0,0.00030136,120]
[344059294,1733260731725,500.0,0.00030136,120]
[344059295,1733260731992,179.26959456,0.00030136,120]
[344059299,1733260809436,1014.749891,0.00030137,120]
[344059302,1733261141139,-1169.27083333,0.00024412,2]
[344059303,1733261141163,-328.9366,0.00025987,2]
[344059304,1733261141187,-263.0,0.00027658,2]
[344059305,1733261141208,-1149.06942246,0.00027659,2]
[344059306,1733261143083,-2987.89642007,0.00027659,2]
[344059307,1733261227102,-1169.27083333,0.00025672,2]
[344059308,1733261227126,-300.0,0.00027658,2]
[344059309,1733261227150,-1674.38509644,0.00027659,2]
[344059310,1733261249115,-2622.69911253,0.00027659,2]
[344059311,1733261252203,-1528.13775282,0.00027659,2]
[344059313,1733261316808,355.71816173,0.0003,120]
[344059314,1733261318793,854.40056607,0.0002,120]
[344059315,1733261347138,-2607.86853274,0.0001999,2]
[344059316,1733261347162,-208.8547692,0.0002061,2]
[344059317,1733261347182,-402.15995635,0.000236,2]
[344059318,1733261347203,-300.0,0.00024999,2]
[344059319,1733261347227,-22603.4399106,0.00025,2]
[344059320,1733261347246,-166.01883743,0.00025,2]
[344059321,1733261347268,-9174.4827813,0.00025,2]
[344059322,1733261347287,-511.53513543,0.00025,2]
[344059323,1733261347309,-37545.94788292,0.0002509,2]
[344059324,1733261347329,-1169.27083333,0.00025414,2]
[344059325,1733261347350,-1921.80540921,0.00026,30]
[344059326,1733261347371,-420.0,0.00027082,2]
[344059327,1733261347391,-1915.28121308,0.00027659,2]
[344059328,1733261347413,-170.675925,0.00027822,2]
[344059329,1733261352132,-1102.01,0.0002799,10]
[344059330,1733261352156,-6388.45276509,0.00028,2]
[344059334,1733261396420,949.76352164,0.00025672,2]
[344059335,1733261396442,219.50731169,0.00025672,2]
[344059336,1733261402364,709.93531017,0.00024953,2]
[344059373,1733261432347,-300.0,0.00027999,2]
[344059375,1733261432357,-660.73169559,0.00028,2]
[344059377,1733261432367,-10676.96266042,0.00028,2]
[344059379,1733261432378,-2611.48911317,0.00028,2]
[344059381,1733261432387,-79756.84343942,0.00028,2]
[344059383,1733261432397,-347.3678741,0.00028169,2]
[344059385,1733261432406,-4004.59137466,0.00029852,3]
[344059387,1733261432415,-156.99076886,0.000299,2]
[344059389,1733261432425,-489.32,0.00029963,10]
[344059391,1733261432434,-505.77451353,0.00029973,5]
[344059393,1733261432444,-163.0,0.00029977,7]
[344059395,1733261432454,-777.59,0.00029979,10]
[344059397,1733261432463,-933.11,0.00029989,10]
[344059399,1733261432472,-210.68884711,0.00029999,2]
[344059401,1733261432482,-10326.5464623,0.00029999,2]
[344059404,1733261432491,-191.86447931,0.00029999,2]
[344059406,1733261432503,-500.0,0.00029999,2]
[344059409,1733261432511,-38185.69042095,0.0003,2]
[344059413,1733261432523,-3910.90766893,0.0003,2]
[344059415,1733261432535,-2507.77027322,0.0003,2]
[344059417,1733261432546,-2725.26963666,0.0003,2]
[344059419,1733261432555,-7934.30473046,0.0003,5]
[344059422,1733261432567,-773.07068419,0.0003,5]
[344059424,1733261432578,-268.209553,0.0003,5]
[344059426,1733261432590,-499.563478,0.0003,5]
[344059428,1733261432600,-433.1,0.0003,5]
[344059430,1733261432612,-331.977,0.0003,5]
[344059530,1733261438592,-323.36409509,0.00029973,5]
[344059546,1733261442540,-176.63590491,0.00029973,5]
[344059547,1733261442551,-9524.15022049,0.0003,5]
[344059548,1733261442682,-3627.88194319,0.0003,5]
[344059549,1733261442695,-2233.42437193,0.0003,5]
[344059580,1733261443450,-7670.96086,0.0003,5]
[344059585,1733261443531,-691.15,0.0002999,10]
[344059586,1733261443544,-479.6,0.0002999,10]
[344059587,1733261443553,-5401.95354634,0.0003,5]
[344059588,1733261443565,-1705.06474893,0.0003,5]
[344059589,1733261443622,-1041.92380129,0.0003,5]
[344059607,1733261446431,-817.14,0.0002999,3]
[344059608,1733261446441,-500.0,0.00029999,2]
[344059609,1733261446450,-500.0,0.00029999,2]
[344059610,1733261446459,-476.32346829,0.00029999,2]
[344059611,1733261446468,-375.05047595,0.00029999,2]
[344059612,1733261446478,-20603.50554352,0.0003,5]
[344059615,1733261460779,761.062418,0.00030137,120]
[344059617,1733261472271,555.40467867,0.00025672,2]
[344059618,1733261472300,613.86615466,0.00025672,2]
[344059643,1733262036824,333.488,0.00029,120]
[344059651,1733262250987,570.796813,0.00030137,120]
[344059658,1733262426140,-1169.27083333,0.00025757,2]
[344059659,1733262426162,-204.359754,0.00027062,2]
[344059660,1733262426182,-168.560225,0.00027115,2]
[344059661,1733262426203,-2186.6085924,0.00028071,2]
[344059662,1733262426224,-300.0,0.00028485,2]
[344059663,1733262426244,-1476.89090431,0.00028486,2]
[344059664,1733262430097,-2431.19374055,0.00028486,2]
[344059665,1733262433545,2124.5340412,0.0003099,120]
[344059666,1733262433574,487.29759518,0.0003099,120]
[344059667,1733262434098,-231.70685339,0.00028486,2]
[344059669,1733262447100,-399.84983959,0.00028486,2]
[344059676,1733262549104,-1169.27083333,0.0002606,2]
[344059677,1733262549125,-155.0,0.00027,2]
[344059678,1733262571997,1169.27083333,0.0002606,2]
[344059684,1733262632608,-228.035914,0.00029178,30]
[344059685,1733262632620,-300.0,0.0002921,2]
[344059686,1733262632629,-300.0,0.0002921,2]
[344059687,1733262632639,-9966.26817694,0.00029211,2]
[344059688,1733262632648,-2054.83552736,0.00029335,2]
[344059689,1733262632661,-575.01005936,0.00029335,2]
[344059690,1733262632673,-5935.91417948,0.00029335,2]
[344059691,1733262632685,-1400.50841074,0.00029335,2]
[344059692,1733262632695,-150.0,0.00029626,2]
[344059693,1733262632705,-498.10809596,0.000297,2]
[344059694,1733262632721,-265.30192901,0.000297,2]
[344059695,1733262632730,-367.82491185,0.00029782,2]
[344059764,1733262638837,-25.74520593,0.00029782,2]
[344059773,1733262641752,-9966.26817694,0.00029782,2]
[344059774,1733262641763,-5828.4390604,0.000298,7]
[344059775,1733262641772,-763.41002493,0.00029871,2]
[344059776,1733262641781,-6666.0,0.000299,2]
[344059777,1733262641791,-160.92474241,0.000299,2]
[344059778,1733262641800,-1944.89589956,0.000299,2]
[344059779,1733262641992,-781.58018078,0.000299,2]
[344059780,1733262642006,-296.25508933,0.000299,2]
[344059781,1733262642096,-728.12554419,0.000299,2]
[344059782,1733262642106,-1471.92,0.0002999,10]
[344059783,1733262642117,-500.0,0.00029999,2]
[344059784,1733262642126,-500.0,0.00029999,2]
[344059785,1733262642135,-468.19978736,0.00029999,2]
[344059786,1733262642145,-500.0,0.00029999,2]
[344059787,1733262642154,-500.0,0.00029999,2]
[344059788,1733262642163,-176.74965593,0.00029999,2]
[344059789,1733262642173,-500.0,0.00029999,2]
[344059790,1733262642182,-500.0,0.00029999,2]
[344059791,1733262642191,-500.0,0.00029999,2]
[344059792,1733262642201,-166.39097292,0.00029999,10]
[344059793,1733262642210,-171.52230487,0.0003,2]
[344059794,1733262642218,-40430.46319632,0.0003,2]
[344059795,1733262642230,-17904.1880248,0.0003,2]
[344059796,1733262642240,-209802.74880964,0.0003,5]
[344059797,1733262642287,-1324.04597823,0.0003,5]
[344059824,1733262643647,-500.0,0.00029973,5]
[344059825,1733262643657,-668.88398937,0.0003,5]
[344059827,1733262643670,-2797.12439833,0.0003,5]
[344059830,1733262643685,-106900.2308,0.0003,5]
[344059850,1733262646602,-907.3086803,0.0003,5]
[344059851,1733262646614,-501.05633221,0.0003,5]
[344059852,1733262646639,-4798.0,0.0003,5]
[344059853,1733262646650,-23369.9383193,0.0003,5]
[344059855,1733262648970,1169.27083333,0.0002606,2]
[344059863,1733262881808,428.097609,0.00030137,120]
[344059889,1733263530980,321.073206,0.00030137,120]
[344059890,1733263625141,-1169.27083333,0.00025797,2]
[344059891,1733263625162,-500.0,0.00027999,2]
[344059892,1733263625182,-204.359754,0.00028164,2]
[344059893,1733263625202,-225.68179525,0.00028634,2]
[344059894,1733263625223,-500.0,0.00029369,4]
[344059895,1733263625242,-300.0,0.00029416,2]
[344059896,1733263625263,-300.0,0.00029416,2]
[344059897,1733263625284,-2756.27499488,0.00029417,2]
[344059899,1733263633098,-172.14873962,0.00029417,2]
[344059901,1733263648297,-1825.74829045,0.00029407,2]
[344059903,1733263745364,-1169.27083333,0.00025565,2]
[344059905,1733263811971,1169.27083333,0.00025797,2]
[344059922,1733263831797,-12828.0,0.00029404,2]
[344059923,1733263831806,-500.0,0.00029597,2]
[344059924,1733263831816,-9053.39403173,0.00029613,2]
[344059925,1733263831826,-6666.0,0.000299,2]
[344059927,1733263831835,-200.57969652,0.000299,2]
[344059928,1733263831845,-771.86,0.00029937,15]
[344059929,1733263831855,-271.96,0.0002999,3]
[344059930,1733263831864,-1255.25,0.0002999,10]
[344059931,1733263831874,-500.0,0.00029999,2]
[344059932,1733263831883,-203.46386391,0.00029999,2]
[344059933,1733263831892,-211.22787322,0.00029999,2]
[344059934,1733263831902,-749.3244427,0.00029999,2]
[344059935,1733263831912,-177.78790605,0.0003,2]
[344059937,1733263831922,-10294.45281204,0.0003,2]
[344059938,1733263831962,-13139.10048275,0.0003,2]
[344059956,1733263837801,-499.54962846,0.00029999,2]
[344059957,1733263837810,-485.41702946,0.00029999,2]
[344059958,1733263837819,-12303.32255714,0.0003,2]
[344059959,1733263837828,-3585.20000001,0.0003,15]
[344059960,1733263837837,-5554.0,0.0003,20]
[344059961,1733263837846,-2777.0,0.0003,20]
[344059962,1733263837855,-2777.0,0.0003,20]
[344059963,1733263837864,-2777.0,0.0003,20]
[344059964,1733263837873,-2777.0,0.0003,20]
[344059965,1733263837882,-217.0,0.0003,2]
[344059966,1733263837891,-211.244678,0.0003,10]
[344059967,1733263837900,-261.56,0.0003,2]
[344059968,1733263837910,-405.0,0.0003,2]
[344059969,1733263837919,-195.45810534,0.0003,30]
[344059970,1733263837928,-485.41702946,0.0003,7]
[344059971,1733263837937,-200.57969646,0.00030011,2]
[344059972,1733263837947,-158.53408976,0.00030066,2]
[344059973,1733263837956,-200.57969646,0.00030122,2]
[344059974,1733263837966,-1046.04,0.00030126,10]
[344059975,1733263837978,-381.00819515,0.00030135,2]
[344059976,1733263837996,-500.0,0.00030135,2]
[344059978,1733263838011,-500.0,0.00030135,2]
[344059979,1733263838024,-349.4541412,0.00030135,2]
[344059980,1733263838034,-322.66615406,0.00030135,2]
[344059981,1733263838045,-342.48450068,0.00030135,2]
[344059982,1733263838054,-378.36824459,0.00030135,2]
[344059983,1733263838063,-163.13330971,0.00030135,2]
[344059984,1733263838073,-151.0,0.00030136,7]
[344059985,1733263838083,-241.085951,0.00030136,7]
[344059986,1733263838092,-151.0,0.00030136,7]
[344059987,1733263838102,-151.0,0.00030136,7]
[344059988,1733263838111,-280.651764,0.00030136,7]
[344059989,1733263838120,-151.0,0.00030136,7]
[344059990,1733263838130,-151.0,0.00030136,7]
[344059991,1733263838139,-151.0,0.00030136,7]
[344059992,1733263838148,-151.0,0.00030136,7]
[344059993,1733263838158,-151.0,0.00030136,7]
[344059995,1733263838168,-151.0,0.00030136,7]
[344059996,1733263838177,-151.0,0.00030136,7]
[344059997,1733263838186,-151.0,0.00030136,7]
[344059998,1733263838196,-151.0,0.00030136,7]
[344059999,1733263838205,-154.223238,0.00030136,7]
[344060000,1733263838215,-762.854188,0.00030136,7]
[344060001,1733263838224,-762.854188,0.00030136,7]
[344060002,1733263838234,-762.854188,0.00030136,7]
[344060003,1733263838243,-762.854188,0.00030136,7]
[344060004,1733263838253,-762.854188,0.00030136,7]
[344060005,1733263838265,-762.854188,0.00030136,7]
[344060006,1733263838275,-762.854188,0.00030136,7]
[344060007,1733263838285,-762.854188,0.00030136,7]
[344060008,1733263838295,-762.854188,0.00030136,7]
[344060009,1733263838306,-762.854188,0.00030136,7]
[344060010,1733263838315,-762.854188,0.00030136,7]
[344060011,1733263838325,-762.854188,0.00030136,7]
[344060012,1733263838335,-762.854188,0.00030136,7]
[344060013,1733263838344,-762.854188,0.00030136,7]
[344060014,1733263838354,-762.854188,0.00030136,7]
[344060015,1733263838364,-762.854188,0.00030136,7]
[344060016,1733263838373,-762.854188,0.00030136,7]
[344060017,1733263838382,-762.854188,0.00030136,7]
[344060018,1733263838392,-762.854188,0.00030136,7]
[344060019,1733263838401,-762.854188,0.00030136,7]
[344060020,1733263838410,-171.9836,0.00030136,7]
[344060021,1733263838420,-151.0,0.00030136,7]
[344060022,1733263838429,-151.0,0.00030136,7]
[344060023,1733263838439,-232.671404,0.00030136,7]
[344060024,1733263838448,-500.0,0.00030136,7]
[344060025,1733263838457,-151.747178,0.00030136,7]
[344060026,1733263838466,-500.0,0.00030136,7]
[344060027,1733263838476,-151.0,0.00030136,7]
[344060028,1733263838486,-151.0,0.00030136,7]
[344060029,1733263838496,-151.0,0.00030136,7]
[344060030,1733263838506,-500.0,0.00030136,7]
[344060031,1733263838516,-500.0,0.00030136,7]
[344060032,1733263838526,-503.24733895,0.00030136,7]
[344060033,1733263838535,-500.0,0.00030136,7]
[344060034,1733263838546,-500.0,0.00030136,7]
[344060035,1733263838555,-502.18574772,0.00030136,7]
[344060036,1733263838565,-500.0,0.00030136,7]
[344060037,1733263838574,-500.0,0.00030136,7]
[344060038,1733263838583,-500.0,0.00030136,7]
[344060039,1733263838593,-199.36706913,0.00030136,7]
[344060040,1733263838602,-500.0,0.00030136,7]
[344060041,1733263838612,-202.65848385,0.00030136,7]
[344060042,1733263838622,-500.0,0.00030136,7]
[344060043,1733263838631,-500.0,0.00030136,7]
[344060044,1733263838641,-500.0,0.00030136,7]
[344060045,1733263838652,-500.0,0.00030136,7]
[344060046,1733263838662,-500.0,0.00030136,7]
[344060047,1733263838672,-500.0,0.00030136,7]
[344060048,1733263838681,-547.00058052,0.00030136,7]
[344060049,1733263838691,-500.0,0.00030136,7]
[344060050,1733263838701,-500.0,0.00030136,7]
[344060051,1733263838710,-500.0,0.00030136,7]
[344060052,1733263838720,-500.0,0.00030136,7]
[344060053,1733263838730,-502.91432481,0.00030136,7]
[344060054,1733263838739,-500.0,0.00030136,7]
[344060055,1733263838747,-180.66951272,0.00030136,7]
[344060056,1733263838758,-500.0,0.00030136,7]
[344060057,1733263838767,-300.61595275,0.00030136,7]
[344060058,1733263838777,-205.35497794,0.00030136,7]
[344060059,1733263838787,-500.0,0.00030136,7]
[344060060,1733263838799,-500.0,0.00030136,7]
[344060061,1733263838809,-500.0,0.00030136,7]
[344060062,1733263838819,-500.0,0.00030136,7]
[344060063,1733263838831,-250.63000203,0.00030136,7]
[344060064,1733263838842,-500.0,0.00030136,7]
[344060065,1733263838854,-353.164926,0.00030136,7]
[344060066,1733263838863,-353.164926,0.00030136,7]
[344060067,1733263838873,-353.164926,0.00030136,7]
[344060068,1733263838883,-353.164926,0.00030136,7]
[344060069,1733263838892,-353.164926,0.00030136,7]
[344060070,1733263838901,-353.164926,0.00030136,7]
[344060071,1733263838911,-500.0,0.00030136,7]
[344060072,1733263838921,-353.164926,0.00030136,7]
[344060073,1733263838931,-506.95308298,0.00030136,7]
[344060074,1733263838940,-119.83128639,0.00030136,7]
[344060083,1733263839720,-233.33363961,0.00030136,7]
[344060084,1733263839729,-353.164926,0.00030136,7]
[344060086,1733263839739,-353.164926,0.00030136,7]
[344060087,1733263839749,-353.164926,0.00030136,7]
[344060088,1733263839761,-533.65180515,0.00030136,7]
[344060089,1733263839771,-353.164926,0.00030136,7]
[344060090,1733263839781,-353.164926,0.00030136,7]
[344060091,1733263839790,-353.164926,0.00030136,7]
[344060092,1733263839799,-500.0,0.00030136,7]
[344060093,1733263839809,-500.0,0.00030136,7]
[344060094,1733263839819,-500.0,0.00030136,7]
[344060095,1733263839828,-500.0,0.00030136,7]
[344060096,1733263839838,-500.0,0.00030136,7]
[344060097,1733263839848,-500.0,0.00030136,7]
[344060098,1733263839857,-500.0,0.00030136,7]
[344060099,1733263839867,-511.71328693,0.00030136,7]
[344060100,1733263839876,-555.52133593,0.00030136,7]
[344060101,1733263839886,-513.72155373,0.00030136,7]
[344060102,1733263839895,-500.0,0.00030136,7]
[344060103,1733263839905,-500.0,0.00030136,7]
[344060104,1733263839914,-500.0,0.00030136,7]
[344060105,1733263839924,-192.63678767,0.00030136,7]
[344060106,1733263839933,-500.0,0.00030136,7]
[344060107,1733263839942,-550.70970571,0.00030136,7]
[344060108,1733263839951,-500.0,0.00030136,7]
[344060109,1733263839960,-506.1532842,0.00030136,7]
[344060110,1733263839970,-500.0,0.00030136,7]
[344060111,1733263839980,-500.0,0.00030136,7]
[344060112,1733263839992,-500.0,0.00030136,7]
[344060113,1733263840002,-500.0,0.00030136,7]
[344060114,1733263840015,-500.0,0.00030136,7]
[344060115,1733263840024,-205.09530956,0.00030136,7]
[344060116,1733263840035,-500.0,0.00030136,7]
[344060117,1733263840045,-500.0,0.00030136,7]
[344060118,1733263840055,-500.0,0.00030136,7]
[344060119,1733263840065,-500.0,0.00030136,7]
[344060120,1733263840075,-500.0,0.00030136,7]
[344060121,1733263840085,-572.6702713,0.00030136,7]
[344060122,1733263840094,-504.7536933,0.00030136,7]
[344060123,1733263840103,-500.0,0.00030136,7]